bitfinex-derivatives/quotes_SOLF0:USTF0_20241107
["timestamp","ask_amount","ask_price","bid_price","bid_amount"]
[1730994337691,37.58012435,191.15,190.94,9.36]
[1730994337692,4.9612,191.15,191.05,2.6153]
[1730994337890,2.6145,191.12,191.02,32.61892435]
[1730994338095,37.58012435,191.15,190.99,32.61892435]
[1730994338391,2.6142,191.14,191.05,32.61892435]
[1730994339287,2.5862,191.15,191.1,2.6146]
[1730994339594,5.0443,191.23,191.08,32.61892435]
[1730994340188,2.6136,191.18,191.11,2.6144]
[1730994340382,102.57453,191.21,191.11,2.6144]
[1730994340592,102.57453,191.21,191.08,32.61892435]
[1730994340895,2.6137,191.17,191.08,32.61892435]
[1730994341194,102.57453,191.21,191.08,32.61892435]
[1730994342696,2.6136,191.19,191.11,2.6144]
[1730994342898,102.57453,191.21,191.08,32.61892435]
[1730994343291,102.57453,191.21,191.13,32.62166685]
[1730994343600,102.57453,191.21,191.17,2.6136]
[1730994344291,102.57453,191.21,191.16,2.6139]
[1730994344689,102.57453,191.21,191.13,32.62166685]
[1730994344886,102.57453,191.21,191.12,2.6144]
[1730994345287,2.6136,191.19,191.12,2.6144]
[1730994345695,102.57453,191.21,191.1,32.62166685]
[1730994346092,102.57453,191.21,191.13,32.62166685]
[1730994346394,102.57453,191.21,191.16,2.6138]
[1730994346592,105.18773,191.21,191.16,2.6138]
[1730994346991,102.57453,191.21,191.1,32.62166685]
[1730994347387,102.57453,191.21,191.11,2.6145]
[1730994347995,102.57453,191.21,191.09,20.07388118]
[1730994348191,5.05,191.2,191.07,37.66]
[1730994348395,7.6633,191.2,191.09,20.07388118]
[1730994348600,5.05,191.2,191.13,2.6142]
[1730994348800,5.05,191.2,191.09,20.07388118]
[1730994349596,2.6137,191.17,191.12,2.6143]
[1730994349790,102.57453,191.21,191.12,20.07388118]
[1730994350395,102.57453,191.21,191.14,2.6141]
[1730994350602,102.57453,191.21,191.12,20.07388118]
[1730994352002,2.6135,191.19,191.13,2.6142]
[1730994352398,2.6136,191.18,191.12,2.6143]
[1730994352602,102.57453,191.21,191.09,20.07388118]
[1730994353000,102.57453,191.21,191.13,20.07388118]
[1730994353199,102.57453,191.21,191.15,20.07388118]
[1730994353603,102.57453,191.21,191.19,2.6134]
[1730994353997,102.57453,191.21,191.16,8.72]
[1730994354207,102.57453,191.21,191.2,2.6133]
[1730994354501,5.2203,191.44,191.19,20.07388118]
[1730994354502,22.62838118,191.36,191.19,20.07388118]
[1730994354703,22.62838118,191.36,191.25,2.6126]
[1730994354899,22.62838118,191.36,191.23,20.07388118]
[1730994355802,22.62838118,191.36,191.25,2.6126]
[1730994356407,22.62838118,191.36,191.21,20.07388118]
[1730994356895,2.6118,191.32,191.21,20.07388118]
[1730994357101,2.6118,191.32,191.25,2.6125]
[1730994357403,22.62838118,191.36,191.25,2.6125]
[1730994357599,15.68,191.54,191.28,20.07388118]
[1730994357801,2.6109,191.38,191.29,11.0119]
[1730994358808,5.1014,191.43,191.29,8.4]
[1730994359008,5.1014,191.43,191.3,2.6118]
[1730994359311,5.1014,191.43,191.29,8.4]
[1730994359501,5.1014,191.43,191.31,20.07388118]
[1730994359911,5.1014,191.43,191.3,20.07388118]
[1730994360301,5.1014,191.43,191.3,22.68568118]
[1730994360507,5.1014,191.43,191.3,20.07388118]
[1730994360711,2.6113,191.36,191.29,11.0121]
[1730994360899,20.07388118,191.41,191.27,20.07388118]
[1730994361099,5.1014,191.43,191.28,8.4]
[1730994361306,5.1014,191.43,191.3,20.07388118]
[1730994361510,5.1014,191.43,191.28,8.4]
[1730994361700,2.6108,191.39,191.32,2.6115]
[1730994362005,5.1014,191.43,191.28,8.4]
[1730994362212,2.6114,191.35,191.27,22.68628118]
[1730994362411,20.07388118,191.41,191.26,8.4]
[1730994362705,2.6117,191.32,191.26,11.0125]
[1730994362908,2.6117,191.32,191.26,8.4]
[1730994363104,2.6117,191.32,191.24,37.64]
[1730994363410,20.07388118,191.37,191.24,37.64]
[1730994363606,2.6119,191.31,191.25,8.4]
[1730994363911,20.07388118,191.34,191.19,2.6134]
[1730994364106,20.07388118,191.34,191.2,8.4]
[1730994364508,2.612,191.3,191.22,2.6129]
[1730994364707,20.07388118,191.34,191.22,2.6129]
[1730994365410,20.07388118,191.34,191.2,8.4]
[1730994365608,2.6124,191.27,191.2,11.0133]
[1730994366805,2.6124,191.27,191.21,2.6131]
[1730994367405,2.6124,191.27,191.2,8.4]
[1730994367611,2.6124,191.27,191.22,2.613]
[1730994368010,2.6122,191.29,191.2,28.47388118]
[1730994368310,20.07388118,191.34,191.2,28.47388118]
[1730994368718,20.07388118,191.34,191.21,2.6132]
[1730994369013,20.07388118,191.34,191.2,28.47388118]
[1730994369210,2.6124,191.27,191.2,28.47388118]
[1730994369409,20.07388118,191.34,191.17,20.07388118]
[1730994369612,20.07388118,191.31,191.18,8.04]
[1730994369911,20.07388118,191.28,191.14,57.71388118]
[1730994370114,20.07388118,191.28,191.14,65.75388118]
[1730994371004,4.8214,191.3,191.17,20.07388118]
[1730994371412,2.6124,191.27,191.2,2.6132]
[1730994372209,2.6126,191.26,191.18,2.6135]
[1730994372511,2.6126,191.26,191.17,20.07388118]
[1730994372713,4.8214,191.3,191.17,20.07388118]
[1730994373315,4.8214,191.3,191.17,28.11388118]
[1730994373514,2.6129,191.24,191.17,30.72758118]
[1730994375322,2.6131,191.22,191.17,28.11388118]
[1730994376320,20.07388118,191.29,191.14,57.71388118]
[1730994376512,20.07388118,191.29,191.14,65.45388118]
[1730994377208,2.6135,191.19,191.14,20.07388118]
[1730994377408,4.8214,191.3,191.11,20.07388118]
[1730994377409,20.07388118,191.26,191.11,20.07388118]
[1730994377621,2.4084,191.25,191.11,20.07388118]
[1730994377923,2.4084,191.25,191.05,20.07388118]
[1730994377924,20.07388118,191.2,191.05,20.07388118]
[1730994378814,2.502,191.19,191.05,20.07388118]
[1730994379011,20.07388118,191.16,191.01,27.81388118]
[1730994379210,2.6148,191.1,191.03,2.6156]
[1730994379716,20.07388118,191.16,191.03,2.6156]
[1730994379916,20.07388118,191.16,191.01,20.07388118]
[1730994380313,2.6145,191.12,191.01,20.07388118]
[1730994380624,20.07388118,191.16,191.03,2.6155]
[1730994381021,20.07388118,191.16,191.01,20.07388118]
[1730994381225,2.4375,191.18,191.04,20.07388118]
[1730994381724,20.07388118,191.16,191.01,20.07388118]
[1730994381924,2.4375,191.18,191.07,20.07388118]
[1730994382126,2.6139,191.17,191.09,2.6148]
[1730994382424,2.502,191.19,191.1,20.07388118]
[1730994382617,2.502,191.19,191.13,2.6142]
[1730994382818,2.502,191.19,191.1,20.07388118]
[1730994383222,5.1155,191.19,191.1,22.68838118]
[1730994383423,5.1155,191.19,191.0,7.74]
[1730994383424,2.502,191.19,191.0,7.74]
[1730994383622,2.502,191.19,191.07,20.07388118]
[1730994383816,2.502,191.19,191.09,2.6148]
[1730994384231,2.6138,191.17,191.09,2.6148]
[1730994384421,2.502,191.19,191.07,20.07388118]
[1730994385319,2.6143,191.13,191.07,20.07388118]
[1730994385516,2.502,191.19,191.07,20.07388118]
[1730994385914,2.6138,191.17,191.07,20.07388118]
[1730994386322,2.502,191.19,191.07,20.07388118]
[1730994386827,22.45498118,191.24,191.13,2.6142]
[1730994387327,22.45498118,191.24,191.11,20.07388118]
[1730994387525,22.45498118,191.24,191.07,20.07388118]
[1730994387715,2.6135,191.19,191.07,20.07388118]
[1730994387923,22.45498118,191.24,191.11,2.6145]
[1730994388123,22.45498118,191.24,191.07,20.07388118]
[1730994388428,2.6135,191.17,191.07,20.07388118]
[1730994388826,22.45498118,191.24,191.11,20.07388118]
[1730994389028,2.4084,191.25,191.14,20.07388118]
[1730994389229,2.4084,191.25,191.16,2.6135]
[1730994389525,2.6128,191.22,191.16,2.6135]
[1730994389829,22.48228118,191.25,191.15,7.44]
[1730994391725,20.07388118,191.21,191.07,20.07388118]
[1730994392025,2.6134,191.18,191.07,20.07388118]
[1730994392627,20.07388118,191.24,191.1,20.07388118]
[1730994392928,2.4084,191.25,191.13,20.07388118]
[1730994393322,2.4084,191.25,191.12,20.07527394]
[1730994393526,2.6129,191.22,191.15,2.6137]
[1730994394124,2.4084,191.25,191.15,2.6137]
[1730994394322,2.6128,191.22,191.15,2.6137]
[1730994395023,2.4084,191.25,191.15,2.6137]
[1730994395223,2.4084,191.25,191.12,20.07527394]
[1730994395619,2.6127,191.23,191.12,20.07527394]
[1730994395824,2.6127,191.23,191.16,2.6135]
[1730994396230,2.4084,191.25,191.16,2.6135]
[1730994396825,2.6129,191.21,191.15,2.6137]
[1730994397328,2.6129,191.21,191.14,12.54700734]
[1730994397529,2.4084,191.25,191.14,12.54700734]
[1730994397832,2.4084,191.25,191.17,12.54700734]
[1730994398124,12.54700734,191.29,191.19,2.6132]
[1730994398722,2.6123,191.26,191.19,2.6132]
[1730994398921,12.54700734,191.29,191.19,2.6132]
[1730994399129,12.54700734,191.29,191.17,12.54700734]
[1730994399130,12.54700734,191.29,191.21,2.6129]
[1730994400431,12.54700734,191.29,191.22,2.6128]
[1730994400632,12.54700734,191.29,191.16,19.98700734]
[1730994400840,12.54700734,191.29,191.19,12.54700734]
[1730994401029,12.54700734,191.32,191.22,2.6128]
[1730994401229,12.54700734,191.32,191.21,12.54700734]
[1730994401628,12.54700734,191.32,191.24,2.6125]
[1730994401837,12.54700734,191.32,191.21,12.54700734]
[1730994402442,2.6121,191.28,191.22,2.6127]
[1730994402740,12.54700734,191.29,191.18,2.5111]
[1730994402925,2.6125,191.24,191.18,2.6133]
[1730994403125,12.54700734,191.31,191.19,12.54700734]
[1730994403533,15.15860734,191.31,191.24,2.6125]
[1730994403729,12.54700734,191.31,191.24,2.6125]
[1730994403927,12.54700734,191.31,191.21,12.54700734]
[1730994404230,2.6122,191.27,191.21,2.6129]
[1730994404432,12.54700734,191.31,191.18,12.54700734]
[1730994404632,2.6122,191.27,191.18,12.54700734]
[1730994404827,12.54700734,191.31,191.21,12.54700734]
[1730994405043,4.9617,191.33,191.21,12.54700734]
[1730994405839,2.4621,191.33,191.21,12.54700734]
[1730994406543,2.4621,191.33,191.23,12.54700734]
[1730994407743,2.6115,191.32,191.26,2.6121]
[1730994408245,2.4621,191.33,191.23,12.54700734]
[1730994408444,2.6116,191.31,191.25,2.6123]
[1730994409243,2.5719548,191.44,191.25,19.68700734]
[1730994409441,12.54700734,191.37,191.28,2.6119]
[1730994409835,2.6107,191.37,191.31,2.6115]
[1730994410848,2.6114,191.32,191.26,5.0101]
[1730994411146,12.54700734,191.34,191.26,2.398]
[1730994411339,12.54700734,191.34,191.25,9.7522]
[1730994411340,2.6116,191.31,191.25,9.7522]
[1730994412041,12.54700734,191.34,191.25,7.14]
[1730994412236,12.54700734,191.32,191.2,12.54700734]
[1730994412437,12.54700734,191.32,191.21,7.14]
[1730994412634,2.612,191.28,191.21,7.14]
[1730994413135,2.612,191.28,191.23,2.6125]
[1730994413943,2.6122,191.27,191.21,9.4728]
[1730994414237,2.6122,191.27,191.21,6.86]
[1730994414439,12.54700734,191.32,191.21,6.86]
[1730994414440,2.6122,191.26,191.22,2.6127]
[1730994417447,12.54700734,191.32,191.21,6.86]
[1730994417641,12.54700734,191.32,191.24,2.6125]
[1730994418043,2.6121,191.28,191.24,2.6125]
[1730994418243,12.54700734,191.32,191.21,6.86]
[1730994418445,12.54700734,191.32,191.22,2.6127]
[1730994418644,2.6118,191.29,191.22,2.6127]
[1730994418844,12.54700734,191.32,191.22,2.6127]
[1730994419247,2.6121,191.27,191.23,2.6126]
[1730994420657,2.4496,191.31,191.22,12.54700734]
[1730994421347,2.6117,191.3,191.25,2.6122]
[1730994421764,12.54700734,191.29,191.19,12.54700734]
[1730994422055,12.54700734,191.29,191.2,6.58]
[1730994422246,2.4496,191.31,191.2,6.58]
[1730994422849,2.6118,191.3,191.25,2.6123]
[1730994423051,12.54700734,191.35,191.22,12.54700734]
[1730994423256,12.54700734,191.35,191.24,12.54700734]
[1730994423755,2.6114,191.33,191.28,2.6119]
[1730994424350,12.54700734,191.35,191.21,12.54700734]
[1730994424855,2.452,191.38,191.19,6.58]
[1730994424856,12.54700734,191.3,191.19,6.58]
[1730994425546,2.6121,191.28,191.22,2.6127]
[1730994426050,2.6121,191.28,191.23,2.6126]
[1730994426249,12.54700734,191.3,191.19,6.58]
[1730994426749,12.54700734,191.3,191.23,2.6125]
[1730994426951,2.6121,191.28,191.23,2.6125]
[1730994427157,2.6121,191.28,191.19,6.58]
[1730994427454,12.54700734,191.33,191.26,2.6122]
[1730994428150,2.6116,191.31,191.26,2.6122]
[1730994428452,2.6116,191.31,191.24,2.6125]
[1730994428751,2.6116,191.31,191.21,12.54700734]
[1730994428956,2.6115,191.32,191.27,2.612]
[1730994429349,12.54700734,191.33,191.27,2.612]
[1730994429553,2.6116,191.31,191.27,2.612]
[1730994429957,12.54700734,191.33,191.28,2.6119]
[1730994430144,2.6114,191.32,191.28,2.6119]
[1730994431045,2.6114,191.32,191.27,2.612]
[1730994432457,2.6114,191.32,191.21,12.54700734]
[1730994432652,2.6116,191.31,191.21,12.54700734]
[1730994432961,12.54700734,191.33,191.21,12.54700734]
[1730994433161,12.54700734,191.33,191.25,2.6123]
[1730994433459,12.54700734,191.33,191.21,12.54700734]
[1730994433859,2.6115,191.32,191.21,12.54700734]
[1730994434059,12.54700734,191.33,191.22,6.24]
[1730994434571,12.54700734,191.35,191.24,12.54700734]
[1730994435064,2.6112,191.34,191.24,12.54700734]
[1730994436065,12.54700734,191.35,191.24,12.54700734]
[1730994437359,2.6114,191.32,191.27,2.6121]
[1730994437555,12.54700734,191.35,191.24,12.54700734]
[1730994437769,2.452,191.38,191.17,2.398]
[1730994437770,12.54700734,191.3,191.19,6.24]
[1730994438060,2.6122,191.27,191.23,2.6126]
[1730994438262,12.54700734,191.3,191.23,2.6126]
[1730994438461,2.6119,191.29,191.24,2.6124]
[1730994438661,2.547,191.33,191.23,12.54700734]
[1730994438866,2.587,191.34,191.23,12.54700734]
[1730994439061,2.587,191.34,191.28,2.6119]
[1730994439570,12.54700734,191.35,191.28,2.6119]
[1730994440262,2.6114,191.32,191.28,2.6119]
[1730994440967,2.6114,191.32,191.27,2.6121]
[1730994441471,2.6116,191.31,191.27,2.6121]
[1730994442567,2.6115,191.32,191.27,2.6121]
[1730994443763,2.6113,191.33,191.28,2.6119]
[1730994444167,14.99900734,191.38,191.26,12.54700734]
[1730994444675,2.6112,191.34,191.29,2.6118]
[1730994445372,14.99900734,191.38,191.26,12.54700734]
[1730994445571,14.99900734,191.38,191.27,4.9233]
[1730994446267,2.611,191.35,191.3,2.6116]
[1730994446466,14.99900734,191.38,191.3,2.6116]
[1730994446863,2.6112,191.34,191.29,2.6118]
[1730994447471,14.99900734,191.38,191.27,4.9233]
[1730994448163,2.6111,191.34,191.29,2.6117]
[1730994448561,2.61781162,191.47,191.31,12.54700734]
[1730994448861,12.54700734,191.44,191.34,12.54700734]
[1730994449065,12.54700734,191.44,191.34,18.48700734]
[1730994450462,5.2123,191.45,191.34,18.48700734]
[1730994450665,2.6241,191.45,191.37,12.54700734]
[1730994450869,2.6241,191.45,191.39,2.6105]
[1730994451367,12.54700734,191.49,191.39,15.15750734]
[1730994451670,5.0247,191.51,191.39,15.15750734]
[1730994451671,128.36787622,191.4,191.39,15.15750734]
[1730994451867,87.3161567,191.4,191.39,15.15750734]
[1730994452067,2.6079,191.58,191.52,2.6086]
[1730994452274,7.4113,191.59,191.39,50.16700734]
[1730994452275,5.0247,191.59,191.54,12.54700734]
[1730994452469,12.54700734,191.65,191.55,5.94]
[1730994452671,2.3866,191.72,191.56,12.54700734]
[1730994452672,7.5159,191.72,191.56,12.54700734]
[1730994452973,12.54700734,191.69,191.59,12.54700734]
[1730994453169,12.54700734,191.69,191.6,2.6076]
[1730994453477,12.54700734,191.69,191.59,12.54700734]
[1730994453976,2.607,191.65,191.59,12.54700734]
[1730994454163,12.54700734,191.68,191.59,12.54700734]
[1730994454675,15.15360734,191.68,191.59,15.15470734]
[1730994454971,12.54700734,191.68,191.59,12.54700734]
[1730994455569,2.6066,191.68,191.61,2.6074]
[1730994455770,12.54700734,191.71,191.59,12.54700734]
[1730994456471,12.54700734,191.71,191.61,12.54700734]
[1730994456680,7.5159,191.72,191.64,12.54700734]
[1730994456869,20.06290734,191.72,191.5,2.64260731]
[1730994457069,20.06290734,191.72,191.6,12.54700734]
[1730994457266,12.54700734,191.69,191.59,5.94]
[1730994457465,7.5159,191.72,191.59,5.94]
[1730994457674,12.54700734,191.69,191.59,5.94]
[1730994457879,2.6067,191.67,191.6,2.6076]
[1730994458075,5.1293,191.72,191.6,5.94]
[1730994458275,15.03210734,191.71,191.6,5.94]
[1730994458877,15.03210734,191.71,191.61,12.54700734]
[1730994459292,12.54700734,191.75,191.63,12.54700734]
[1730994459466,2.6056,191.75,191.67,2.6066]
[1730994459670,12.54700734,191.77,191.63,12.54700734]
[1730994460071,12.54700734,191.74,191.63,12.54700734]
[1730994460477,12.54700734,191.72,191.6,18.48700734]
[1730994460666,7.3591,191.8,191.6,18.48700734]
[1730994460667,2.6054,191.76,191.69,2.6063]
[1730994460873,12.54700734,191.76,191.63,12.54700734]
[1730994461165,12.54700734,191.76,191.67,2.6066]
[1730994461373,12.54700734,191.76,191.68,5.94]
[1730994461585,2.6054,191.77,191.68,5.94]
[1730994461974,12.54700734,191.78,191.68,5.94]
[1730994462375,15.15220734,191.78,191.7,2.6062]
[1730994462575,12.54700734,191.78,191.68,5.94]
[1730994463077,12.54700734,191.78,191.5,37.6]
[1730994463078,12.54700734,191.75,191.63,12.54700734]
[1730994463277,12.54700734,191.73,191.64,5.94]
[1730994463767,15.15290734,191.73,191.64,8.547]
[1730994463969,12.54700734,191.73,191.64,8.547]
[1730994464377,2.606,191.72,191.65,2.6068]
[1730994464681,12.54700734,191.73,191.64,5.94]
[1730994467078,15.15290734,191.73,191.66,2.6068]
[1730994467575,15.15260734,191.75,191.68,2.6065]
[1730994467774,12.54700734,191.77,191.66,12.54700734]
[1730994468179,2.6057,191.75,191.66,12.54700734]
[1730994468383,12.54700734,191.77,191.66,12.54700734]
[1730994469280,12.54700734,191.77,191.68,2.6064]
[1730994469682,12.54700734,191.75,191.64,18.48700734]
[1730994469878,2.606,191.72,191.64,18.48700734]
[1730994470081,2.606,191.72,191.64,5.94]
[1730994470284,12.54700734,191.75,191.65,2.6068]
[1730994470582,12.54700734,191.75,191.64,5.94]
[1730994470985,2.6063,191.7,191.65,2.6069]
[1730994471184,12.54700734,191.7,191.5,37.6]
[1730994471482,4.9606,191.69,191.58,12.54700734]
[1730994471874,7.4018,191.69,191.58,12.54700734]
[1730994472079,2.6069,191.66,191.58,12.54700734]
[1730994472387,2.6069,191.66,191.6,2.6075]
[1730994472686,7.4018,191.69,191.6,2.6075]
[1730994472984,7.4018,191.69,191.61,2.6073]
[1730994473183,7.4018,191.69,191.59,5.94]
[1730994473383,7.4018,191.69,191.59,18.45884088]
[1730994473886,12.51884088,191.68,191.59,5.94]
[1730994474083,2.607,191.65,191.59,8.5476]
[1730994474297,12.51884088,191.65,191.52,12.51884088]
[1730994474479,12.51884088,191.65,191.52,18.45884088]
[1730994474681,7.4018,191.69,191.48,30.54964883]
[1730994474682,2.6083,191.55,191.49,2.609]
[1730994475177,5.1983,191.59,191.51,12.51884088]
[1730994475385,5.1983,191.59,191.54,12.51884088]
[1730994475776,5.1983,191.59,191.56,2.6081]
[1730994476188,7.8061,191.59,191.54,12.51884088]
[1730994476696,7.8061,191.59,191.53,2.6085]
[1730994477489,5.1983,191.59,191.55,2.6082]
[1730994477685,5.1983,191.59,191.55,8.6882]
[1730994478089,20.03871091,191.66,191.55,6.08]
[1730994478294,4.9422,191.65,191.57,2.608]
[1730994478590,4.9422,191.65,191.55,6.08]
[1730994479592,2.6071,191.64,191.58,2.6079]
[1730994479989,4.9422,191.65,191.56,20.03871091]
[1730994480192,4.9422,191.65,191.6,2.6075]
[1730994480390,2.4538,191.7,191.56,20.03871091]
[1730994480592,2.4538,191.7,191.59,20.03871091]
[1730994480798,2.6064,191.69,191.64,2.607]
[1730994481394,5.0601,191.7,191.65,2.6069]
[1730994481593,2.4538,191.7,191.59,20.03871091]
[1730994482000,2.6064,191.69,191.59,20.03871091]
[1730994482203,2.4538,191.7,191.59,20.03871091]
[1730994482704,2.6066,191.68,191.63,2.6071]
[1730994482906,2.4538,191.7,191.59,20.03871091]
[1730994483607,2.4538,191.7,191.65,2.6068]
[1730994483790,2.4538,191.7,191.64,6.08]
[1730994484106,2.5633,191.75,191.64,6.08]
[1730994484696,2.6058,191.73,191.68,2.6064]
[1730994485695,5.1575,191.77,191.71,2.6061]
[1730994485696,2.6055,191.76,191.71,2.6061]
[1730994485898,2.5421,191.89,191.66,20.03871091]
[1730994486097,20.03871091,191.83,191.65,20.03871091]
[1730994486698,2.6056,191.75,191.69,2.6063]
[1730994486894,20.03871091,191.8,191.6,2.16385039]
[1730994487098,2.4933,191.74,191.63,20.03871091]
[1730994487293,5.099,191.74,191.69,2.6062]
[1730994487496,5.099,191.74,191.61,8.24385039]
[1730994487497,2.4933,191.74,191.66,20.03871091]
[1730994487695,2.4933,191.74,191.61,8.24385039]
[1730994487696,2.4435,191.79,191.68,20.03871091]
[1730994487996,0.05,192.0,191.67,6.08]
[1730994487997,20.03871091,191.88,191.72,20.03871091]
[1730994488200,20.03871091,191.88,191.69,2.16385039]
[1730994488201,5.1215,191.87,191.69,2.16385039]
[1730994488396,2.6045,191.84,191.79,2.605]
[1730994488596,7.565,191.87,191.77,6.08]
[1730994488901,2.6043,191.84,191.79,2.6049]
[1730994489095,7.565,191.87,191.79,2.6049]
[1730994489316,7.565,191.87,191.77,6.08]
[1730994489697,27.60371091,191.87,191.77,6.08]
[1730994490002,27.60371091,191.87,191.77,8.6852]
[1730994490003,2.6045,191.83,191.77,8.6852]
[1730994490196,27.60371091,191.87,191.73,20.03871091]
[1730994490392,27.60371091,191.87,191.75,6.08]
[1730994490593,2.6047,191.82,191.76,2.6054]
[1730994491001,27.60371091,191.87,191.78,2.6051]
[1730994491002,2.6044,191.84,191.78,2.6051]
[1730994491200,27.60371091,191.87,191.75,6.08]
[1730994492409,27.60371091,191.87,191.74,8.6857]
[1730994492599,27.60371091,191.87,191.74,6.08]
[1730994492795,20.03871091,191.81,191.66,20.03871091]
[1730994493007,20.03871091,191.83,191.67,6.08]
[1730994494407,20.03871091,191.79,191.67,6.08]
[1730994494905,20.03871091,191.76,191.64,5.8]
[1730994495107,20.03871091,191.73,191.64,5.8]
[1730994495409,27.58867315,191.75,191.64,5.8]
[1730994495610,2.6062,191.71,191.66,2.6067]
[1730994495808,27.58867315,191.75,191.64,5.8]
[1730994496205,2.6059,191.73,191.67,2.6065]
[1730994496503,27.58867315,191.75,191.64,5.8]
[1730994496907,27.58867315,191.75,191.66,2.6067]
[1730994496908,2.6062,191.71,191.66,2.6067]
[1730994497103,20.02787315,191.74,191.53,2.16385039]
[1730994497317,20.02787315,191.74,191.56,20.02787315]
[1730994497502,7.5608,191.75,191.56,20.0258746]
[1730994497705,20.0258746,191.72,191.56,20.0258746]
[1730994497908,2.6068,191.67,191.61,2.6074]
[1730994498212,7.5608,191.75,191.57,5.8]
[1730994498405,2.6067,191.67,191.61,2.6074]
[1730994499001,7.5608,191.75,191.57,5.8]
[1730994499207,2.6065,191.68,191.62,2.6072]
[1730994499411,7.5608,191.75,191.58,20.0258746]
[1730994500310,2.6062,191.7,191.58,20.0258746]
[1730994500511,7.5608,191.75,191.58,20.0258746]
[1730994500713,7.5608,191.75,191.67,2.6065]
[1730994501014,7.5608,191.75,191.67,5.8]
[1730994501212,7.5608,191.75,191.71,2.6061]
[1730994501411,5.2076,191.89,191.69,20.0258746]
[1730994501617,4.9307,191.85,191.72,20.0258746]
[1730994501818,4.9307,191.85,191.78,2.605]
[1730994502214,4.9307,191.85,191.76,5.8]
[1730994502416,2.6044,191.84,191.76,5.8]
[1730994503016,2.6046,191.82,191.77,2.6052]
[1730994503216,2.6046,191.82,191.76,5.8]
[1730994503418,4.9307,191.85,191.76,5.8]
[1730994505921,4.9307,191.85,191.81,2.6047]
[1730994506126,0.05,192.0,191.78,20.0258746]
[1730994506323,20.0258746,191.96,191.81,20.0258746]
[1730994506519,2.6034,191.92,191.85,2.6042]
[1730994506819,20.0258746,191.96,191.85,5.8]
[1730994507017,20.0258746,191.93,191.85,5.8]
[1730994507821,2.6035,191.9,191.85,5.8]
[1730994508018,20.0258746,191.93,191.85,5.8]
[1730994508219,2.6296,191.97,191.85,1.8459]
[1730994508426,20.0258746,191.95,191.85,1.8459]
[1730994508723,2.6296,191.97,191.85,1.8459]
[1730994508926,2.4379,191.99,191.85,21.8717746]
[1730994509117,0.05,192.0,191.85,21.8717746]
[1730994509318,20.0258746,191.98,191.85,21.8717746]
[1730994509519,2.3813,191.97,191.85,1.8459]
[1730994510026,2.3813,191.97,191.89,2.6036]
[1730994510229,2.3813,191.97,191.85,1.8459]
[1730994510430,2.3813,191.97,191.86,5.78]
[1730994511223,4.9839,191.97,191.9,2.6034]
[1730994511423,4.9839,191.97,191.86,5.78]
[1730994511827,2.3813,191.97,191.89,2.6036]
[1730994512526,4.984,191.97,191.91,2.6034]
[1730994512723,2.3813,191.97,191.86,5.78]
[1730994513032,2.3813,191.97,191.87,5.78]
[1730994513416,0.05,192.0,191.88,20.0258746]
[1730994515129,2.6522,192.0,191.91,2.6033]
[1730994515320,2.6522,192.0,191.88,20.0258746]
[1730994515521,0.05,192.0,191.88,20.0258746]
[1730994515831,0.05,192.0,191.95,2.6028]
[1730994517331,0.05,192.0,191.95,5.5]
[1730994517732,2.6523,192.0,191.95,5.5]
[1730994517927,0.05,192.0,191.95,5.5]
[1730994518432,0.05,192.0,191.89,20.0258746]
[1730994518728,0.05,192.0,191.91,5.5]
[1730994518924,0.05,192.0,191.93,2.603]
[1730994519128,0.05,192.0,191.91,5.5]
[1730994519530,0.05,192.0,191.95,2.6028]
[1730994519731,0.05,192.0,191.91,5.5]
[1730994520932,0.05,192.0,191.92,5.5]
[1730994521126,0.05,192.0,191.93,5.5]
[1730994521329,2.6024,191.99,191.93,5.5]
[1730994521528,0.05,192.0,191.93,5.5]
[1730994522634,2.6523,192.0,191.95,2.6028]